[Event "GrandPrix_30.05"]
[Site "Chess.com"]
[Date "2020.05.30"]
[Round "4"]
[White "dosto07"]
[Black "MiroVlasenko"]
[Result "0-1"]
[WhiteElo "1825"]
[BlackElo "2322"]
[TimeControl "600+2"]
[EndTime "9:54:52 PDT"]
[Termination "MiroVlasenko won on time"]

1. e4 {[%clk 0:10:01.9]} 1... c5 {[%clk 0:10:00.3]} 2. Nf3 {[%clk 0:10:02.1]}
2... a6 {[%clk 0:10:01.8]} 3. c4 {[%clk 0:09:31.7]} 3... e6 {[%clk 0:09:59.2]}
4. Nc3 {[%clk 0:09:20.6]} 4... b6 {[%clk 0:09:55.1]} 5. d4 {[%clk 0:09:21.1]}
5... cxd4 {[%clk 0:09:56]} 6. Nxd4 {[%clk 0:09:21.8]} 6... Bb7 {[%clk
0:09:57.1]} 7. Be2 {[%clk 0:09:19.2]} 7... Qc7 {[%clk 0:09:45.8]} 8. O-O {[%clk
0:09:11.5]} 8... Nf6 {[%clk 0:09:35]} 9. Bf3 {[%clk 0:07:10.7]} 9... Bd6 {[%clk
0:08:32.2]} 10. h3 {[%clk 0:05:48.5]} 10... Be5 {[%clk 0:08:04.3]} 11. Be3
{[%clk 0:05:32.4]} 11... h5 {[%clk 0:07:10]} 12. Qd3 {[%clk 0:05:04.8]} 12...
Ng4 {[%clk 0:06:52]} 13. Rfd1 {[%clk 0:03:15.7]} 13... Nxe3 {[%clk 0:06:13.8]}
14. Qxe3 {[%clk 0:03:14]} 14... Nc6 {[%clk 0:05:48.5]} 15. Nxc6 {[%clk
0:03:04.2]} 15... dxc6 {[%clk 0:05:50.4]} 16. Rd2 {[%clk 0:02:40.4]} 16... Bf4
{[%clk 0:05:45.3]} 17. Qe2 {[%clk 0:02:28.5]} 17... Bxd2 {[%clk 0:05:29.1]} 18.
Qxd2 {[%clk 0:02:29.4]} 18... e5 {[%clk 0:03:25.8]} 19. Qg5 {[%clk 0:02:19.4]}
19... g6 {[%clk 0:03:07.7]} 20. c5 {[%clk 0:02:04]} 20... b5 {[%clk 0:02:50]}
21. a4 {[%clk 0:01:39.9]} 21... Qe7 {[%clk 0:02:42]} 22. Qe3 {[%clk 0:01:32.5]}
22... b4 {[%clk 0:02:20.7]} 23. Ne2 {[%clk 0:01:23.6]} 23... a5 {[%clk
0:02:20.7]} 24. Nc1 {[%clk 0:01:06.4]} 24... Bc8 {[%clk 0:02:14]} 25. Nd3 {[%clk
0:00:57.3]} 25... f6 {[%clk 0:02:01.6]} 26. Rd1 {[%clk 0:00:44.9]} 26... O-O
{[%clk 0:01:45.3]} 27. Be2 {[%clk 0:00:36.8]} 27... Be6 {[%clk 0:01:32.1]} 28.
f4 {[%clk 0:00:33.6]} 28... exf4 {[%clk 0:01:27.2]} 29. Nxf4 {[%clk 0:00:33.8]}
29... Bf7 {[%clk 0:01:27.6]} 30. Rd6 {[%clk 0:00:31.9]} 30... Rfe8 {[%clk
0:01:19.3]} 31. Bd3 {[%clk 0:00:32.4]} 31... Rac8 {[%clk 0:01:14.4]} 32. Qd4
{[%clk 0:00:32.1]} 32... Qe5 {[%clk 0:01:14.9]} 33. Qxe5 {[%clk 0:00:26.6]}
33... Rxe5 {[%clk 0:01:13.4]} 34. Rxf6 {[%clk 0:00:24.8]} 34... Kg7 {[%clk
0:01:14.5]} 35. Rd6 {[%clk 0:00:20.8]} 35... g5 {[%clk 0:01:10.1]} 36. Ne2
{[%clk 0:00:16.2]} 36... Rxc5 {[%clk 0:01:04.7]} 37. Nd4 {[%clk 0:00:16.8]}
37... Kf8 {[%clk 0:01:01.4]} 38. Rd7 {[%clk 0:00:14.4]} 38... Re5 {[%clk
0:01:00.1]} 39. Kf2 {[%clk 0:00:14]} 39... c5 {[%clk 0:00:57.3]} 40. Nf3 {[%clk
0:00:10.4]} 40... Re7 {[%clk 0:00:57]} 41. Rxe7 {[%clk 0:00:06.5]} 41... Kxe7
{[%clk 0:00:57.7]} 42. Nxg5 {[%clk 0:00:08.2]} 42... c4 {[%clk 0:00:59]} 43. Bc2
{[%clk 0:00:09.1]} 43... c3 {[%clk 0:00:55]} 44. bxc3 {[%clk 0:00:08.8]} 44...
Rxc3 {[%clk 0:00:55.1]} 45. Bd1 {[%clk 0:00:08.2]} 45... h4 {[%clk 0:00:52.1]}
46. Nf3 {[%clk 0:00:08.8]} 46... Bb3 {[%clk 0:00:51.7]} 47. Be2 {[%clk
0:00:08.9]} 47... Bxa4 {[%clk 0:00:51.8]} 48. Nd4 {[%clk 0:00:09.2]} 48... Bd7
{[%clk 0:00:51.5]} 49. e5 {[%clk 0:00:08.6]} 49... b3 {[%clk 0:00:48.7]} 50. e6
{[%clk 0:00:03.4]} 50... Bxe6 {[%clk 0:00:48.4]} 51. Nb5 {[%clk 0:00:03.5]}
51... Rc2 {[%clk 0:00:46.8]} 52. Na3 {[%clk 0:00:03.5]} 52... Ra2 {[%clk
0:00:46]} 0-1

[Event "GrandPrix_30.05"]
[Site "Chess.com"]
[Date "2020.05.30"]
[Round "4"]
[White "gygygygygyggygygygy"]
[Black "VincentKeymer"]
[Result "0-1"]
[WhiteElo "2038"]
[BlackElo "2627"]
[TimeControl "600+2"]
[EndTime "9:55:03 PDT"]
[Termination "VincentKeymer won by resignation"]

1. e4 {[%clk 0:10:01.9]} 1... e6 {[%clk 0:10:01]} 2. d3 {[%clk 0:09:56.7]} 2...
d5 {[%clk 0:10:02.9]} 3. Nd2 {[%clk 0:09:56.7]} 3... c5 {[%clk 0:09:57.2]} 4.
Ngf3 {[%clk 0:09:57.4]} 4... Nc6 {[%clk 0:09:57.8]} 5. g3 {[%clk 0:09:58.9]}
5... g6 {[%clk 0:09:58.3]} 6. Bg2 {[%clk 0:09:58.8]} 6... Nge7 {[%clk
0:09:59.4]} 7. O-O {[%clk 0:09:57.7]} 7... Bg7 {[%clk 0:10:00.6]} 8. Re1 {[%clk
0:09:36.7]} 8... O-O {[%clk 0:10:00.7]} 9. Qe2 {[%clk 0:09:37]} 9... b5 {[%clk
0:09:53.5]} 10. e5 {[%clk 0:09:25.1]} 10... a5 {[%clk 0:09:18.8]} 11. Nf1 {[%clk
0:09:24.2]} 11... Bb7 {[%clk 0:09:08.8]} 12. h4 {[%clk 0:09:21.9]} 12... Nf5
{[%clk 0:08:52]} 13. Bg5 {[%clk 0:09:12.1]} 13... Qc7 {[%clk 0:08:50.6]} 14.
N1h2 {[%clk 0:09:01]} 14... Nfd4 {[%clk 0:08:46.6]} 15. Nxd4 {[%clk 0:08:35.3]}
15... Nxd4 {[%clk 0:08:48.5]} 16. Qd2 {[%clk 0:08:35.9]} 16... Bxe5 {[%clk
0:08:41]} 17. Ng4 {[%clk 0:08:17]} 17... Bg7 {[%clk 0:08:41.3]} 18. h5 {[%clk
0:06:10.6]} 18... f6 {[%clk 0:08:01.8]} 19. Bh6 {[%clk 0:05:42.6]} 19... e5
{[%clk 0:07:52.3]} 20. hxg6 {[%clk 0:05:14.3]} 20... hxg6 {[%clk 0:07:49.2]} 21.
f4 {[%clk 0:05:08]} 21... e4 {[%clk 0:07:33.4]} 22. Bxg7 {[%clk 0:04:23.7]}
22... Kxg7 {[%clk 0:07:24]} 23. c4 {[%clk 0:03:24.3]} 23... bxc4 {[%clk
0:07:10.1]} 24. dxe4 {[%clk 0:02:47.3]} 24... dxe4 {[%clk 0:07:08.5]} 25. Ne3
{[%clk 0:02:40.8]} 25... Rad8 {[%clk 0:07:00.2]} 26. Qf2 {[%clk 0:02:27.3]}
26... Rh8 {[%clk 0:05:42]} 27. Rac1 {[%clk 0:01:55.1]} 27... Qd7 {[%clk
0:05:01.1]} 28. g4 {[%clk 0:01:16.5]} 28... Nf3+ {[%clk 0:04:51.8]} 29. Bxf3
{[%clk 0:01:15.3]} 29... exf3 {[%clk 0:04:53.7]} 30. Rcd1 {[%clk 0:01:03.5]}
30... Qc7 {[%clk 0:04:13.9]} 31. Rxd8 {[%clk 0:01:02.5]} 31... Rxd8 {[%clk
0:04:14.3]} 32. Qh2 {[%clk 0:00:38.6]} 32... Rh8 {[%clk 0:04:03.8]} 33. Qg3
{[%clk 0:00:39.2]} 33... Qd6 {[%clk 0:02:39.4]} 34. Rd1 {[%clk 0:00:33.3]} 34...
Qe7 {[%clk 0:02:15.7]} 35. Kf2 {[%clk 0:00:32.3]} 35... Re8 {[%clk 0:02:12.6]}
36. Re1 {[%clk 0:00:32.4]} 36... Qd6 {[%clk 0:01:55.8]} 37. Rd1 {[%clk
0:00:32.4]} 37... Qc7 {[%clk 0:01:32.8]} 38. g5 {[%clk 0:00:29.9]} 38... f5
{[%clk 0:01:26.3]} 39. Rh1 {[%clk 0:00:29.8]} 39... Rxe3 {[%clk 0:00:41.1]} 40.
Kxe3 {[%clk 0:00:27.1]} 40... Qe7+ {[%clk 0:00:39.6]} 41. Kd2 {[%clk 0:00:26.5]}
41... Qe2+ {[%clk 0:00:40]} 42. Kc1 {[%clk 0:00:26.2]} 42... f2 {[%clk
0:00:33.4]} 43. Qc3+ {[%clk 0:00:26.4]} 43... Kf7 {[%clk 0:00:18.7]} 44. Rh7+
{[%clk 0:00:26.6]} 44... Ke6 {[%clk 0:00:19.1]} 45. Qf6+ {[%clk 0:00:26.9]}
45... Kd5 {[%clk 0:00:19.6]} 46. Rd7+ {[%clk 0:00:19.8]} 46... Ke4 {[%clk
0:00:19.6]} 47. Re7+ {[%clk 0:00:16.6]} 47... Kf3 {[%clk 0:00:19.4]} 48. Qc3+
{[%clk 0:00:17.1]} 48... Qd3 {[%clk 0:00:19.3]} 0-1

[Event "GrandPrix_30.05"]
[Site "Chess.com"]
[Date "2020.05.30"]
[Round "4"]
[White "lelajavakhishvili"]
[Black "chess_big_master"]
[Result "0-1"]
[WhiteElo "2144"]
[BlackElo "2058"]
[TimeControl "600+2"]
[EndTime "9:55:03 PDT"]
[Termination "chess_big_master won by resignation"]

1. d4 {[%clk 0:10:01.9]} 1... d5 {[%clk 0:10:00.2]} 2. c4 {[%clk 0:10:01.6]}
2... e6 {[%clk 0:10:01.2]} 3. Nf3 {[%clk 0:09:56.2]} 3... Nf6 {[%clk 0:09:59.6]}
4. g3 {[%clk 0:09:56.7]} 4... Bb4+ {[%clk 0:09:59.3]} 5. Bd2 {[%clk 0:09:57.1]}
5... Bd6 {[%clk 0:10:00]} 6. Nc3 {[%clk 0:09:49.3]} 6... O-O {[%clk 0:09:53.1]}
7. Qc2 {[%clk 0:09:50.1]} 7... dxc4 {[%clk 0:09:48.9]} 8. e4 {[%clk 0:09:46.7]}
8... e5 {[%clk 0:09:50]} 9. Nxe5 {[%clk 0:08:04.2]} 9... Bxe5 {[%clk 0:09:42.4]}
10. dxe5 {[%clk 0:08:04.3]} 10... Ng4 {[%clk 0:09:43.2]} 11. Bf4 {[%clk
0:06:56.8]} 11... Nc6 {[%clk 0:08:33.7]} 12. Bxc4 {[%clk 0:06:40.7]} 12... Ngxe5
{[%clk 0:08:15.4]} 13. Be2 {[%clk 0:06:15.8]} 13... Nb4 {[%clk 0:07:20.7]} 14.
Qd2 {[%clk 0:05:48.6]} 14... Qxd2+ {[%clk 0:05:40.3]} 15. Kxd2 {[%clk
0:05:31.7]} 15... Rd8+ {[%clk 0:05:38.2]} 16. Kc1 {[%clk 0:04:34.5]} 16... Ned3+
{[%clk 0:04:44.9]} 17. Kb1 {[%clk 0:04:19.2]} 17... Nxf4 {[%clk 0:04:40]} 18.
gxf4 {[%clk 0:04:18]} 18... Bh3 {[%clk 0:03:03]} 19. Rg1 {[%clk 0:03:50.7]}
19... Nd3 {[%clk 0:02:43.7]} 20. Bxd3 {[%clk 0:03:19.8]} 20... Rxd3 {[%clk
0:02:43.6]} 21. Rg3 {[%clk 0:03:07.2]} 21... Rad8 {[%clk 0:02:31.8]} 22. Kc1
{[%clk 0:02:19.1]} 22... c6 {[%clk 0:02:08.2]} 23. a4 {[%clk 0:02:07.9]} 23...
Be6 {[%clk 0:01:48.2]} 24. Ra3 {[%clk 0:01:32.2]} 24... Rd2 {[%clk 0:01:21.9]}
25. f5 {[%clk 0:01:25]} 25... Bc4 {[%clk 0:01:15.2]} 26. Rf3 {[%clk 0:01:01.1]}
26... R8d3 {[%clk 0:01:00.9]} 27. Rxd3 {[%clk 0:00:47.2]} 27... Rxd3 {[%clk
0:01:02.8]} 28. Nb1 {[%clk 0:00:43.9]} 28... Rxa3 {[%clk 0:00:58]} 29. bxa3
{[%clk 0:00:32.9]} 29... f6 {[%clk 0:00:37.1]} 30. Nd2 {[%clk 0:00:32]} 30...
Be2 {[%clk 0:00:35.9]} 31. Kb2 {[%clk 0:00:30.3]} 31... Kf7 {[%clk 0:00:36.1]}
32. a5 {[%clk 0:00:29.4]} 32... Ke7 {[%clk 0:00:35.6]} 33. Kc3 {[%clk
0:00:28.5]} 33... Kd6 {[%clk 0:00:36.4]} 34. f4 {[%clk 0:00:29.2]} 34... Kc5
{[%clk 0:00:32.8]} 35. Nb3+ {[%clk 0:00:26.7]} 35... Kd6 {[%clk 0:00:33.4]} 36.
Nd4 {[%clk 0:00:22.6]} 36... Bf1 {[%clk 0:00:28.2]} 37. h4 {[%clk 0:00:22.9]}
37... g6 {[%clk 0:00:20]} 38. fxg6 {[%clk 0:00:21.3]} 38... hxg6 {[%clk
0:00:20.9]} 39. f5 {[%clk 0:00:20.9]} 39... g5 {[%clk 0:00:19.8]} 40. hxg5
{[%clk 0:00:21.7]} 40... fxg5 {[%clk 0:00:20.4]} 41. Nf3 {[%clk 0:00:21.7]}
41... g4 {[%clk 0:00:18.5]} 42. e5+ {[%clk 0:00:22.5]} 42... Kd5 {[%clk
0:00:18.7]} 43. e6 {[%clk 0:00:18.6]} 43... Kd6 {[%clk 0:00:19.6]} 44. Nh2
{[%clk 0:00:15.9]} 44... g3 {[%clk 0:00:20.5]} 45. Nf3 {[%clk 0:00:14.9]} 45...
Be2 {[%clk 0:00:21.2]} 46. Ng1 {[%clk 0:00:15.2]} 46... Bg4 {[%clk 0:00:22.4]}
47. Kd4 {[%clk 0:00:12.1]} 47... Bxf5 {[%clk 0:00:23.5]} 48. Ne2 {[%clk
0:00:13.2]} 48... g2 {[%clk 0:00:23.8]} 49. Ke3 {[%clk 0:00:13.7]} 49... Bxe6
{[%clk 0:00:24.4]} 50. Kf2 {[%clk 0:00:14.2]} 50... Bd5 {[%clk 0:00:25.6]} 51.
Nc3 {[%clk 0:00:14.1]} 51... Kc5 {[%clk 0:00:26.5]} 0-1

[Event "GrandPrix_30.05"]
[Site "Chess.com"]
[Date "2020.05.30"]
[Round "4"]
[White "lilleper1"]
[Black "PotapovaM"]
[Result "1-0"]
[WhiteElo "2405"]
[BlackElo "2177"]
[TimeControl "600+2"]
[EndTime "9:55:06 PDT"]
[Termination "lilleper1 won by resignation"]

1. d4 {[%clk 0:10:00.7]} 1... Nf6 {[%clk 0:10:00.7]} 2. c4 {[%clk 0:10:01.4]}
2... e6 {[%clk 0:09:56.1]} 3. Nf3 {[%clk 0:10:02.2]} 3... d5 {[%clk 0:09:43.7]}
4. g3 {[%clk 0:10:03]} 4... dxc4 {[%clk 0:09:42.9]} 5. Bg2 {[%clk 0:10:01.6]}
5... a6 {[%clk 0:09:38.8]} 6. O-O {[%clk 0:10:01.7]} 6... Nc6 {[%clk 0:09:40.1]}
7. Nbd2 {[%clk 0:10:02.4]} 7... Nxd4 {[%clk 0:08:39.8]} 8. Nxc4 {[%clk
0:10:02.4]} 8... Nxf3+ {[%clk 0:08:35.5]} 9. Bxf3 {[%clk 0:10:03.3]} 9... Qxd1
{[%clk 0:08:36.1]} 10. Rxd1 {[%clk 0:10:04.2]} 10... Be7 {[%clk 0:08:04.5]} 11.
Na5 {[%clk 0:09:36.5]} 11... Nd5 {[%clk 0:07:45.3]} 12. e4 {[%clk 0:09:18]}
12... Nb4 {[%clk 0:07:21.7]} 13. Bf4 {[%clk 0:08:23.4]} 13... c5 {[%clk
0:07:06.7]} 14. Nc4 {[%clk 0:07:32.4]} 14... Bd7 {[%clk 0:05:09.2]} 15. Nb6
{[%clk 0:06:42.5]} 15... Rd8 {[%clk 0:05:08.5]} 16. Bc7 {[%clk 0:06:37.9]} 16...
Bc6 {[%clk 0:04:38]} 17. Bxd8 {[%clk 0:06:30.7]} 17... Bxd8 {[%clk 0:04:39.9]}
18. Nc4 {[%clk 0:06:26.9]} 18... Nc2 {[%clk 0:04:26.1]} 19. Rab1 {[%clk
0:06:21.7]} 19... Nd4 {[%clk 0:04:25.4]} 20. Bg2 {[%clk 0:06:19.8]} 20... Ke7
{[%clk 0:03:42.1]} 21. Ne5 {[%clk 0:05:53.9]} 21... Ba4 {[%clk 0:03:30.9]} 22.
b3 {[%clk 0:05:37]} 22... Be8 {[%clk 0:02:58]} 23. Rb2 {[%clk 0:05:09.1]} 23...
f6 {[%clk 0:02:57.5]} 24. Nd3 {[%clk 0:05:06.9]} 24... b6 {[%clk 0:02:50.8]} 25.
Rc1 {[%clk 0:04:52.5]} 25... e5 {[%clk 0:02:44.9]} 26. b4 {[%clk 0:04:40.7]}
26... Bb5 {[%clk 0:02:39.2]} 27. Bf1 {[%clk 0:04:07.6]} 27... c4 {[%clk
0:01:19.1]} 28. Ne1 {[%clk 0:03:51.2]} 28... Bc6 {[%clk 0:01:08.2]} 29. Bxc4
{[%clk 0:03:35.6]} 29... Bxe4 {[%clk 0:01:08.8]} 30. Bxa6 {[%clk 0:03:34.4]}
30... h5 {[%clk 0:01:03.9]} 31. Bf1 {[%clk 0:03:07.7]} 31... b5 {[%clk
0:00:52.9]} 32. Bg2 {[%clk 0:02:51]} 32... f5 {[%clk 0:00:38.3]} 33. Bxe4 {[%clk
0:02:02.7]} 33... fxe4 {[%clk 0:00:40.2]} 34. Rc5 {[%clk 0:01:57.6]} 34... Kd6
{[%clk 0:00:36.1]} 35. Nc2 {[%clk 0:01:23.4]} 35... Bb6 {[%clk 0:00:36.8]} 36.
Nxd4 {[%clk 0:01:19.1]} 36... exd4 {[%clk 0:00:19.2]} 37. Rxb5 {[%clk
0:01:19.1]} 37... Kc6 {[%clk 0:00:16.9]} 38. Re5 {[%clk 0:01:16.5]} 38... d3
{[%clk 0:00:07.2]} 39. Re6+ {[%clk 0:00:57.9]} 39... Kb7 {[%clk 0:00:07]} 40.
Rxe4 {[%clk 0:00:56.9]} 40... Rd8 {[%clk 0:00:08]} 41. Rd2 {[%clk 0:00:55.8]}
41... Kc6 {[%clk 0:00:08.4]} 42. a4 {[%clk 0:00:51.6]} 42... Bd4 {[%clk
0:00:10]} 43. Rxd3 {[%clk 0:00:42.5]} 43... Bxf2+ {[%clk 0:00:11.1]} 44. Kxf2
{[%clk 0:00:43.3]} 44... Rxd3 {[%clk 0:00:13]} 45. Re6+ {[%clk 0:00:42.1]} 45...
Kd5 {[%clk 0:00:13.5]} 46. Rg6 {[%clk 0:00:40.6]} 46... Kc4 {[%clk 0:00:07.2]}
47. b5 {[%clk 0:00:36.4]} 47... Kb4 {[%clk 0:00:03]} 48. b6 {[%clk 0:00:29.8]}
48... Kxa4 {[%clk 0:00:02.7]} 49. b7 {[%clk 0:00:29.4]} 49... Rb3 {[%clk
0:00:02.8]} 50. Ra6+ {[%clk 0:00:29.7]} 50... Kb5 {[%clk 0:00:02.7]} 51. b8=Q+
{[%clk 0:00:29.9]} 1-0

[Event "GrandPrix_30.05"]
[Site "Chess.com"]
[Date "2020.05.30"]
[Round "4"]
[White "Tyoma88888"]
[Black "Vesper2018"]
[Result "0-1"]
[WhiteElo "2106"]
[BlackElo "1975"]
[TimeControl "600+2"]
[EndTime "9:55:08 PDT"]
[Termination "Vesper2018 won by resignation"]

1. e4 {[%clk 0:10:01.9]} 1... c5 {[%clk 0:09:58.5]} 2. Nc3 {[%clk 0:10:02.6]}
2... d6 {[%clk 0:09:53.5]} 3. f4 {[%clk 0:10:03.4]} 3... g6 {[%clk 0:09:48.5]}
4. Nf3 {[%clk 0:10:04.3]} 4... Bg7 {[%clk 0:09:49.2]} 5. Bc4 {[%clk 0:10:05.3]}
5... Nc6 {[%clk 0:09:43.9]} 6. O-O {[%clk 0:10:06.1]} 6... e6 {[%clk 0:09:44.8]}
7. d4 {[%clk 0:10:04.6]} 7... cxd4 {[%clk 0:09:27.4]} 8. Nb5 {[%clk 0:10:05.2]}
8... Nge7 {[%clk 0:08:53.6]} 9. Bb3 {[%clk 0:10:05]} 9... O-O {[%clk 0:08:42.9]}
10. Nbxd4 {[%clk 0:10:04.4]} 10... a6 {[%clk 0:07:38.4]} 11. c3 {[%clk
0:09:47.2]} 11... Bd7 {[%clk 0:06:49.6]} 12. Be3 {[%clk 0:09:43.2]} 12... Na5
{[%clk 0:06:38.3]} 13. Rf2 {[%clk 0:09:35.6]} 13... Nxb3 {[%clk 0:06:34.6]} 14.
axb3 {[%clk 0:09:32.2]} 14... e5 {[%clk 0:06:19.3]} 15. Ne2 {[%clk 0:09:21.1]}
15... Bc6 {[%clk 0:06:13.5]} 16. Ng3 {[%clk 0:09:16.4]} 16... Qc7 {[%clk
0:05:56.3]} 17. Rd2 {[%clk 0:09:13.1]} 17... Rad8 {[%clk 0:05:51.4]} 18. Qe2
{[%clk 0:08:51.5]} 18... Nc8 {[%clk 0:04:36.3]} 19. Rad1 {[%clk 0:08:45.3]}
19... exf4 {[%clk 0:04:31]} 20. Bxf4 {[%clk 0:08:42.4]} 20... Qb6+ {[%clk
0:04:32.2]} 21. Qf2 {[%clk 0:07:52.8]} 21... Qxb3 {[%clk 0:04:20.9]} 22. e5
{[%clk 0:07:43.4]} 22... d5 {[%clk 0:04:03.5]} 23. Nd4 {[%clk 0:07:39.8]} 23...
Qb6 {[%clk 0:03:57.1]} 24. Re1 {[%clk 0:07:28.2]} 24... Rde8 {[%clk 0:03:50.1]}
25. h4 {[%clk 0:07:13.5]} 25... h5 {[%clk 0:03:22.7]} 26. Rde2 {[%clk
0:06:47.3]} 26... Bd7 {[%clk 0:03:15.2]} 27. Bg5 {[%clk 0:06:38]} 27... Bg4
{[%clk 0:03:14.8]} 28. Re3 {[%clk 0:06:37.7]} 28... f6 {[%clk 0:02:18.9]} 29.
exf6 {[%clk 0:05:18.8]} 29... Rxe3 {[%clk 0:02:18.8]} 30. Qxe3 {[%clk
0:04:52.7]} 30... Bxf6 {[%clk 0:02:18.5]} 31. Rf1 {[%clk 0:04:01.1]} 31... Bxg5
{[%clk 0:01:57.5]} 32. Rxf8+ {[%clk 0:03:59.4]} 32... Kxf8 {[%clk 0:01:58.1]}
33. Qxg5 {[%clk 0:04:01.3]} 33... Ne7 {[%clk 0:01:45.4]} 34. b4 {[%clk
0:03:12.6]} 34... Qd6 {[%clk 0:01:30.4]} 35. Qe3 {[%clk 0:03:01]} 35... Kf7
{[%clk 0:01:23.1]} 36. Nge2 {[%clk 0:02:46.3]} 36... Ng8 {[%clk 0:01:18.9]} 37.
Nf3 {[%clk 0:02:19.9]} 37... Bxf3 {[%clk 0:01:13.6]} 38. Qxf3+ {[%clk
0:02:21.8]} 38... Nf6 {[%clk 0:01:15]} 39. Nf4 {[%clk 0:01:45.2]} 39... Qe5
{[%clk 0:01:13.5]} 40. Nd3 {[%clk 0:00:52.1]} 40... Qxc3 {[%clk 0:01:00.9]} 41.
Qe3 {[%clk 0:00:45.4]} 41... Qa1+ {[%clk 0:00:55.9]} 42. Ne1 {[%clk 0:00:44.4]}
42... Ng4 {[%clk 0:00:49.5]} 43. Qf3+ {[%clk 0:00:39.6]} 43... Kg7 {[%clk
0:00:46.7]} 44. Qg3 {[%clk 0:00:28.6]} 44... Qd4+ {[%clk 0:00:43.3]} 45. Kh1
{[%clk 0:00:29.4]} 45... Qxb4 {[%clk 0:00:36.2]} 46. Qc7+ {[%clk 0:00:28]} 46...
Kh6 {[%clk 0:00:31.1]} 47. Nf3 {[%clk 0:00:20.3]} 47... Nf2+ {[%clk 0:00:18.7]}
48. Kh2 {[%clk 0:00:18.5]} 48... Ne4 {[%clk 0:00:17.5]} 49. Qd8 {[%clk
0:00:16.9]} 49... Qd6+ {[%clk 0:00:15.8]} 50. Qxd6 {[%clk 0:00:15.1]} 50... Nxd6
{[%clk 0:00:17.1]} 51. Nd4 {[%clk 0:00:17]} 51... b5 {[%clk 0:00:17.7]} 52. Kg3
{[%clk 0:00:18.9]} 52... Nf5+ {[%clk 0:00:17.9]} 53. Kf4 {[%clk 0:00:20.8]} 0-1

[Event "GrandPrix_30.05"]
[Site "Chess.com"]
[Date "2020.05.30"]
[Round "4"]
[White "DrVelja"]
[Black "Rikikits"]
[Result "0-1"]
[WhiteElo "2254"]
[BlackElo "2653"]
[TimeControl "600+2"]
[EndTime "9:55:17 PDT"]
[Termination "Rikikits won by resignation"]

1. e4 {[%clk 0:10:01.9]} 1... e6 {[%clk 0:09:59.7]} 2. d4 {[%clk 0:10:02.6]}
2... d5 {[%clk 0:10:01.2]} 3. e5 {[%clk 0:10:04.2]} 3... c5 {[%clk 0:10:01.7]}
4. c3 {[%clk 0:10:05.8]} 4... Nc6 {[%clk 0:10:02.5]} 5. Nf3 {[%clk 0:10:06.9]}
5... Bd7 {[%clk 0:10:03.4]} 6. Bd3 {[%clk 0:10:07.8]} 6... Qc7 {[%clk 0:10:04]}
7. O-O {[%clk 0:09:23.2]} 7... f6 {[%clk 0:10:03.1]} 8. Re1 {[%clk 0:09:10.1]}
8... fxe5 {[%clk 0:09:54.8]} 9. dxe5 {[%clk 0:09:02.9]} 9... O-O-O {[%clk
0:09:31.5]} 10. b4 {[%clk 0:07:44]} 10... Nh6 {[%clk 0:08:57.3]} 11. b5 {[%clk
0:07:01.6]} 11... Na5 {[%clk 0:08:05.1]} 12. a4 {[%clk 0:06:28.5]} 12... Nf7
{[%clk 0:07:27.2]} 13. Nbd2 {[%clk 0:02:15.9]} 13... g5 {[%clk 0:06:07.4]} 14.
c4 {[%clk 0:02:15.2]} 14... g4 {[%clk 0:06:05.9]} 15. cxd5 {[%clk 0:02:15.5]}
15... gxf3 {[%clk 0:06:00]} 16. d6 {[%clk 0:02:16]} 16... Nxd6 {[%clk
0:05:54.9]} 17. exd6 {[%clk 0:02:16.1]} 17... Bxd6 {[%clk 0:05:52.1]} 18. Nxf3
{[%clk 0:02:16.7]} 18... Rhg8 {[%clk 0:04:55.7]} 19. Bb2 {[%clk 0:02:17.4]}
19... Kb8 {[%clk 0:04:00.2]} 20. Rc1 {[%clk 0:02:13.5]} 20... Bc8 {[%clk
0:03:45.4]} 21. Be5 {[%clk 0:02:04.5]} 21... c4 {[%clk 0:03:23.6]} 22. Qc2
{[%clk 0:01:12.4]} 22... Bxe5 {[%clk 0:02:47.8]} 23. Nxe5 {[%clk 0:01:10.6]}
23... Rxd3 {[%clk 0:01:57.5]} 24. Nxd3 {[%clk 0:01:05.1]} 24... Qg7 {[%clk
0:01:58.9]} 25. Nf4 {[%clk 0:00:33.9]} 25... e5 {[%clk 0:01:59.3]} 26. Qd2
{[%clk 0:00:08.6]} 26... exf4 {[%clk 0:01:59.8]} 27. Qxf4+ {[%clk 0:00:09.9]}
27... Qc7 {[%clk 0:01:27.9]} 28. Qxc7+ {[%clk 0:00:10.4]} 28... Kxc7 {[%clk
0:01:29.8]} 29. Re7+ {[%clk 0:00:11.7]} 29... Kb6 {[%clk 0:01:31.4]} 30. Rxh7
{[%clk 0:00:11.8]} 30... Bf5 {[%clk 0:01:31.4]} 31. Rh6+ {[%clk 0:00:09.5]}
31... Rg6 {[%clk 0:01:32.4]} 32. Rxg6+ {[%clk 0:00:09.7]} 32... Bxg6 {[%clk
0:01:34.3]} 33. g4 {[%clk 0:00:10.8]} 33... Kc5 {[%clk 0:01:35.7]} 34. h4 {[%clk
0:00:12.3]} 34... Nb3 {[%clk 0:01:37.1]} 35. Re1 {[%clk 0:00:10.7]} 35... c3
{[%clk 0:01:23.2]} 36. h5 {[%clk 0:00:12]} 36... Bd3 {[%clk 0:01:12.3]} 37. f4
{[%clk 0:00:08.1]} 37... c2 {[%clk 0:01:01.6]} 38. f5 {[%clk 0:00:09.4]} 38...
Be2 {[%clk 0:00:22.4]} 39. h6 {[%clk 0:00:05]} 39... Bd1 {[%clk 0:00:21.8]} 40.
Re8 {[%clk 0:00:03.7]} 40... Kc4 {[%clk 0:00:19.8]} 41. Rc8+ {[%clk 0:00:02.2]}
41... Nc5 {[%clk 0:00:20.3]} 42. h7 {[%clk 0:00:03.8]} 42... c1=Q {[%clk
0:00:21.6]} 43. h8=Q {[%clk 0:00:03.2]} 43... Qe3+ {[%clk 0:00:19.2]} 44. Kg2
{[%clk 0:00:03.4]} 44... Qf3+ {[%clk 0:00:17.7]} 45. Kh2 {[%clk 0:00:04]} 45...
Qe2+ {[%clk 0:00:18.2]} 46. Kh1 {[%clk 0:00:04]} 46... Qe4+ {[%clk 0:00:13.7]}
47. Kh2 {[%clk 0:00:05.2]} 47... Qf4+ {[%clk 0:00:14.8]} 48. Kg2 {[%clk
0:00:03.1]} 48... Qxg4+ {[%clk 0:00:15.1]} 49. Kh2 {[%clk 0:00:04.6]} 49... Qf4+
{[%clk 0:00:15.9]} 50. Kg2 {[%clk 0:00:05.3]} 50... Bf3+ {[%clk 0:00:16.8]} 51.
Kh3 {[%clk 0:00:03.7]} 51... Qg4+ {[%clk 0:00:17.2]} 0-1